fUSD/lending_fUSD_20250616
["ID","MTS","AMOUNT","RATE_DAILY","PERIOD"]
[366176558,1750098664915,-490.0,0.00016543,2]
[366176559,1750098664924,-168.65080103,0.00016543,2]
[366176560,1750098664934,-2790.29,0.00016543,2]
[366176561,1750098664943,-490.0,0.00016543,2]
[366176562,1750098664953,-4084.56,0.00016543,2]
[366176563,1750098664963,-694.92,0.00016543,2]
[366176564,1750098664973,-565.22,0.00016543,2]
[366176565,1750098664982,-490.0,0.00016543,2]
[366176566,1750098664991,-1000.0,0.00016543,2]
[366176567,1750098665001,-490.0,0.00016543,2]
[366176568,1750098665010,-793.5,0.00016543,2]
[366176569,1750098665020,-747.23,0.00016543,2]
[366176570,1750098665031,-490.0,0.00016543,2]
[366176571,1750098665040,-583.84,0.00016543,2]
[366176572,1750098665050,-490.0,0.00016543,2]
[366176573,1750098665059,-833.28,0.00016543,2]
[366176574,1750098665070,-9086.97,0.00016543,2]
[366176575,1750098665081,-872.92,0.00016543,2]
[366176576,1750098665091,-529.95,0.00016543,2]
[366176577,1750098665101,-926.63,0.00016543,2]
[366176578,1750098665111,-315.45625374,0.00016543,2]
[366176579,1750098665121,-651.68,0.00016543,2]
[366176580,1750098665130,-490.0,0.00016543,2]
[366176581,1750098665140,-490.0,0.00016543,2]
[366176582,1750098665150,-517.68,0.00016543,2]
[366176583,1750098665160,-578.65,0.00016543,2]
[366176584,1750098665173,-490.0,0.00016543,2]
[366176585,1750098665182,-3068.05,0.00016543,2]
[366176586,1750098665192,-490.0,0.00016543,2]
[366176587,1750098665203,-1458.01,0.00016543,2]
[366176588,1750098665213,-490.0,0.00016543,2]
[366176589,1750098665223,-490.0,0.00016543,2]
[366176590,1750098665234,-787.53,0.00016543,2]
[366176591,1750098665244,-1077.12,0.00016543,2]
[366176592,1750098665255,-490.0,0.00016543,2]
[366176593,1750098665265,-490.0,0.00016543,2]
[366176594,1750098665275,-592.18,0.00016543,2]
[366176595,1750098665284,-490.0,0.00016543,2]
[366176596,1750098665294,-1003.24,0.00016543,2]
[366176597,1750098665305,-585.63,0.00016543,2]
[366176598,1750098665314,-8412.1,0.00016543,2]
[366176599,1750098665324,-490.0,0.00016543,2]
[366176600,1750098665335,-490.0,0.00016543,2]
[366176601,1750098665346,-539.86,0.00016543,2]
[366176602,1750098665355,-490.0,0.00016543,2]
[366176603,1750098665364,-783.13,0.00016543,2]
[366176604,1750098665374,-490.0,0.00016543,2]
[366176605,1750098665385,-1676.86,0.00016543,2]
[366176606,1750098665395,-490.0,0.00016543,2]
[366176607,1750098665404,-1197.55,0.00016543,2]
[366176608,1750098665414,-562.33,0.00016543,2]
[366176609,1750098665424,-937.33,0.00016543,2]
[366176610,1750098665434,-490.0,0.00016543,2]
[366176611,1750098665444,-741.83,0.00016543,2]
[366176612,1750098665455,-1010.19,0.00016543,2]
[366176613,1750098665464,-1316.94,0.00016543,2]
[366176614,1750098665474,-490.0,0.00016543,2]
[366176615,1750098665799,-717.02,0.00016543,2]
[366176616,1750098665810,-913.99,0.00016543,2]
[366176617,1750098665820,-304.98485571,0.00016543,2]
[366176618,1750098665830,-490.0,0.00016543,2]
[366176619,1750098665840,-582.21,0.00016543,2]
[366176620,1750098665851,-1575.33,0.00016543,2]
[366176621,1750098665860,-549.24,0.00016543,2]
[366176622,1750098665870,-490.0,0.00016543,2]
[366176623,1750098665879,-490.0,0.00016543,2]
[366176624,1750098665888,-566.99,0.00016543,2]
[366176625,1750098665898,-980.41,0.00016543,2]
[366176626,1750098665908,-3319.43,0.00016543,2]
[366176627,1750098665918,-798.45,0.00016543,2]
[366176628,1750098665930,-490.0,0.00016543,2]
[366176629,1750098665940,-490.0,0.00016543,2]
[366176630,1750098665950,-1187.91,0.00016543,2]
[366176631,1750098665960,-490.0,0.00016543,2]
[366176632,1750098665970,-634.08,0.00016543,2]
[366176633,1750098665980,-613.79,0.00016543,2]
[366176634,1750098665990,-1059.56,0.00016543,2]
[366176635,1750098666000,-2229.92,0.00016543,2]
[366176636,1750098666010,-490.0,0.00016543,2]
[366176637,1750098666021,-775.89,0.00016543,2]
[366176638,1750098666031,-536.55,0.00016543,2]
[366176639,1750098666040,-3731.69,0.00016543,2]
[366176640,1750098666051,-793.2,0.00016543,2]
[366176641,1750098666060,-490.0,0.00016543,2]
[366176642,1750098666070,-490.0,0.00016543,2]
[366176643,1750098666080,-661.62,0.00016543,2]
[366176644,1750098666090,-490.0,0.00016543,2]
[366176645,1750098666101,-2078.71,0.00016543,2]
[366176646,1750098666111,-490.0,0.00016543,2]
[366176647,1750098666120,-541.96,0.00016543,2]
[366176648,1750098666130,-605.92,0.00016543,2]
[366176649,1750098666140,-490.0,0.00016543,2]
[366176650,1750098666149,-490.0,0.00016543,2]
[366176651,1750098666160,-490.0,0.00016543,2]
[366176652,1750098666173,-609.81,0.00016543,2]
[366176653,1750098666183,-604.12,0.00016543,2]
[366176654,1750098666193,-490.0,0.00016543,2]
[366176655,1750098666202,-490.0,0.00016544,2]
[366176656,1750098666212,-490.0,0.00016544,2]
[366176657,1750098666222,-831.18406056,0.00016555,2]
[366176658,1750098666232,-442.14247197,0.00016588,2]
[366176659,1750098666243,-831.18406056,0.0001659,2]
[366176660,1750098666254,-745.03,0.00016592,2]
[366176661,1750098666264,-2569.49,0.000166,2]
[366176662,1750098666274,-376.0,0.000166,2]
[366176663,1750098666284,-769.0,0.000166,2]
[366176664,1750098666294,-300.0,0.000166,6]
[366176665,1750098666304,-237.0,0.000166,2]
[366176666,1750098666315,-13582.22725905,0.00016607,2]
[366176667,1750098666324,-5965.52263209,0.00016616,2]
[366176668,1750098666336,-831.18406056,0.00016624,2]
[366176669,1750098666347,-1000.0,0.00016643,2]
[366176670,1750098666356,-1000.0,0.00016644,2]
[366176671,1750098666366,-1000.0,0.00016644,2]
[366176672,1750098666377,-514.08355955,0.00016644,2]
[366176673,1750098667377,-401.51710176,0.0001572,2]
[366176674,1750098667387,-576.01,0.00015721,2]
[366176675,1750098667397,-490.0,0.00015721,2]
[366176676,1750098667406,-485.91644045,0.00016644,2]
[366176677,1750098667415,-1000.0,0.00016644,2]
[366176678,1750098667426,-1000.0,0.00016644,2]
[366176679,1750098667436,-596.20237799,0.00016652,2]
[366176680,1750098667446,-831.18406056,0.00016659,2]
[366176681,1750098667456,-1199.737403,0.0001666,2]
[366176682,1750098667466,-150.0,0.00016685,2]
[366176683,1750098667476,-150.0,0.00016685,2]
[366176684,1750098667487,-831.18406056,0.00016693,2]
[366176685,1750098667496,-300.0,0.000167,6]
[366176686,1750098667506,-588.004764,0.00016706,2]
[366176687,1750098667516,-3963.81,0.00016706,2]
[366176688,1750098667526,-945.231299,0.00016706,2]
[366176689,1750098667536,-838.36,0.00016706,2]
[366176690,1750098667545,-582.22,0.00016706,2]
[366176691,1750098667555,-764.58,0.00016706,2]
[366176692,1750098667565,-168.08202774,0.00016706,2]
[366176693,1750098667575,-699.39,0.00016706,2]
[366176694,1750098667584,-686.04,0.00016706,2]
[366176695,1750098667594,-490.0,0.00016706,2]
[366176696,1750098667604,-490.0,0.00016706,2]
[366176697,1750098667614,-624.38,0.00016706,2]
[366176698,1750098667623,-2231.27,0.00016706,2]
[366176699,1750098667633,-676.64,0.00016706,2]
[366176700,1750098667643,-3051.51,0.00016706,2]
[366176701,1750098667652,-915.71,0.00016706,2]
[366176702,1750098667662,-1225.86,0.00016706,2]
[366176703,1750098667671,-689.74,0.00016706,2]
[366176704,1750098667680,-1559.36,0.00016706,2]
[366176705,1750098667690,-1441.75,0.00016706,2]
[366176706,1750098667699,-490.0,0.00016706,2]
[366176707,1750098667708,-1047.31,0.00016706,2]
[366176708,1750098667718,-1339.48,0.00016706,2]
[366176709,1750098667727,-501.22,0.00016706,2]
[366176710,1750098667737,-1394.46,0.00016706,2]
[366176711,1750098667746,-5504.56,0.00016706,2]
[366176712,1750098667756,-1516.34,0.00016706,2]
[366176713,1750098667765,-811.17,0.00016706,2]
[366176714,1750098667775,-1573.67,0.00016706,2]
[366176715,1750098667784,-490.0,0.00016706,2]
[366176716,1750098667794,-2426.82,0.00016706,2]
[366176717,1750098667804,-676.01,0.00016706,2]
[366176718,1750098667813,-490.0,0.00016706,2]
[366176719,1750098667823,-490.0,0.00016706,2]
[366176720,1750098667832,-1355.42,0.00016706,2]
[366176721,1750098667841,-609.61,0.00016706,2]
[366176722,1750098667851,-490.0,0.00016707,2]
[366176723,1750098667860,-490.0,0.00016707,2]
[366176724,1750098667869,-179.22771919,0.00016707,2]
[366176725,1750098667878,-490.0,0.00016707,2]
[366176726,1750098667887,-490.0,0.00016707,2]
[366176727,1750098667896,-490.0,0.00016707,2]
[366176728,1750098667907,-626.50948172,0.00016707,2]
[366176729,1750098667916,-490.0,0.00016707,2]
[366176730,1750098667925,-490.0,0.00016707,2]
[366176731,1750098667935,-628.24575228,0.00016707,2]
[366176732,1750098667945,-182.42353402,0.00016707,2]
[366176733,1750098667954,-490.0,0.00016707,2]
[366176734,1750098667963,-257.38986222,0.00016707,2]
[366176735,1750098667973,-798.02,0.00016707,2]
[366176736,1750098667982,-490.0,0.00016707,2]
[366176737,1750098667991,-490.0,0.00016707,2]
[366176738,1750098668001,-490.0,0.00016707,2]
[366176739,1750098668009,-490.0,0.00016707,2]
[366176740,1750098668019,-584.1,0.00016707,2]
[366176741,1750098668028,-490.0,0.00016707,2]
[366176742,1750098668038,-718.89,0.00016707,2]
[366176743,1750098668048,-490.0,0.00016707,2]
[366176744,1750098668057,-490.0,0.00016707,2]
[366176745,1750098668066,-490.0,0.00016707,2]
[366176746,1750098668076,-490.0,0.00016707,2]
[366176747,1750098668086,-490.0,0.00016707,2]
[366176748,1750098668095,-490.0,0.00016707,2]
[366176749,1750098668105,-739.59,0.00016707,2]
[366176750,1750098668114,-490.0,0.00016707,2]
[366176751,1750098668125,-490.0,0.00016707,2]
[366176752,1750098668134,-490.0,0.00016707,2]
[366176753,1750098668143,-490.0,0.00016707,2]
[366176754,1750098668153,-490.0,0.00016707,2]
[366176755,1750098668163,-1280.25,0.00016707,2]
[366176756,1750098668175,-490.0,0.00016707,2]
[366176757,1750098668185,-542.94,0.00016707,2]
[366176758,1750098668195,-513.94,0.00016707,2]
[366176759,1750098668204,-820.81,0.00016707,2]
[366176760,1750098668215,-490.0,0.00016707,2]
[366176761,1750098668226,-490.0,0.00016707,2]
[366176762,1750098668237,-490.0,0.00016707,2]
[366176763,1750098668338,-555.86,0.00016707,2]
[366176764,1750098668348,-668.7,0.00016707,2]
[366176765,1750098668358,-490.0,0.00016707,2]
[366176766,1750098668369,-490.0,0.00016707,2]
[366176767,1750098668378,-1406.05,0.00016707,2]
[366176768,1750098668388,-490.0,0.00016707,2]
[366176769,1750098668397,-490.0,0.00016707,2]
[366176770,1750098668408,-1043.21,0.00016707,2]
[366176771,1750098668418,-490.0,0.00016707,2]
[366176772,1750098668427,-490.0,0.00016707,2]
[366176773,1750098668438,-504.07,0.00016707,2]
[366176774,1750098668447,-1037.82,0.00016707,2]
[366176775,1750098668456,-724.51,0.00016707,2]
[366176776,1750098668466,-572.23,0.00016707,2]
[366176777,1750098668476,-1013.69,0.00016707,2]
[366176778,1750098668486,-770.81,0.00016707,2]
[366176779,1750098668496,-678.41,0.00016707,2]
[366176780,1750098668506,-1081.8,0.00016707,2]
[366176781,1750098668515,-490.0,0.00016707,2]
[366176782,1750098668525,-490.0,0.00016707,2]
[366176783,1750098668535,-490.0,0.00016707,2]
[366176784,1750098668544,-490.0,0.00016707,2]
[366176785,1750098668554,-490.0,0.00016707,2]
[366176786,1750098668563,-490.0,0.00016707,2]
[366176787,1750098668572,-527.81,0.00016707,2]
[366176788,1750098668581,-1003.63,0.00016707,2]
[366176789,1750098668590,-490.0,0.00016707,2]
[366176790,1750098668601,-1079.26,0.00016707,2]
[366176791,1750098668611,-490.0,0.00016707,2]
[366176792,1750098668621,-1095.95,0.00016707,2]
[366176793,1750098668631,-490.0,0.00016707,2]
[366176794,1750098668640,-438.94598204,0.00016707,2]
[366176795,1750098668650,-541.61,0.00016707,2]
[366176796,1750098668660,-769.0,0.00016707,2]
[366176797,1750098668670,-559.6,0.00016707,2]
[366176798,1750098668679,-490.0,0.00016707,2]
[366176799,1750098668689,-1037.53,0.00016707,2]
[366176800,1750098668698,-490.0,0.00016707,2]
[366176801,1750098668707,-492.49,0.00016707,2]
[366176802,1750098668716,-634.35,0.00016707,2]
[366176803,1750098668727,-490.0,0.00016707,2]
[366176804,1750098668737,-490.0,0.00016707,2]
[366176805,1750098668747,-490.0,0.00016707,2]
[366176806,1750098668756,-500.51,0.00016707,2]
[366176807,1750098668766,-530.05,0.00016707,2]
[366176808,1750098668775,-545.32,0.00016707,2]
[366176809,1750098668785,-917.02,0.00016707,2]
[366176810,1750098668794,-699.49,0.00016707,2]
[366176811,1750098668803,-490.0,0.00016707,2]
[366176812,1750098668813,-490.0,0.00016707,2]
[366176813,1750098668822,-508.55,0.00016707,2]
[366176814,1750098668832,-497.07,0.00016707,2]
[366176815,1750098668842,-490.0,0.00016707,2]
[366176816,1750098668852,-490.0,0.00016707,2]
[366176817,1750098668862,-632.45,0.00016707,2]
[366176818,1750098668871,-604.78,0.00016707,2]
[366176819,1750098668881,-715.3,0.00016707,2]
[366176820,1750098668890,-490.0,0.00016707,2]
[366176821,1750098668899,-490.0,0.00016707,2]
[366176822,1750098668908,-490.0,0.00016707,2]
[366176823,1750098668917,-490.0,0.00016707,2]
[366176824,1750098668927,-490.0,0.00016707,2]
[366176825,1750098668936,-648.18,0.00016707,2]
[366176826,1750098668945,-490.0,0.00016707,2]
[366176827,1750098668954,-827.97,0.00016707,2]
[366176828,1750098668963,-490.0,0.00016707,2]
[366176829,1750098668973,-490.0,0.00016707,2]
[366176830,1750098668982,-698.0,0.00016707,2]
[366176831,1750098668992,-602.34,0.00016707,2]
[366176832,1750098669002,-511.02906335,0.00016707,2]
[366176833,1750098669012,-618.36,0.00016707,2]
[366176834,1750098669021,-490.0,0.00016707,2]
[366176835,1750098669031,-744.35,0.00016707,2]
[366176836,1750098669041,-2790.29,0.00016707,2]
[366176837,1750098669051,-490.0,0.00016707,2]
[366176838,1750098669062,-490.0,0.00016707,2]
[366176839,1750098669072,-542.25,0.00016707,2]
[366176840,1750098669082,-4084.56,0.00016707,2]
[366176841,1750098669091,-694.92,0.00016707,2]
[366176842,1750098669104,-736.17,0.00016707,2]
[366176843,1750098669114,-565.22,0.00016707,2]
[366176844,1750098669123,-490.0,0.00016707,2]
[366176845,1750098669133,-1000.0,0.00016707,2]
[366176846,1750098669142,-490.0,0.00016707,2]
[366176847,1750098669151,-523.68,0.00016707,2]
[366176848,1750098669161,-599.28,0.00016707,2]
[366176849,1750098669173,-1121.0,0.00016707,2]
[366176850,1750098669184,-793.5,0.00016707,2]
[366176851,1750098669194,-747.23,0.00016707,2]
[366176852,1750098669203,-490.0,0.00016707,2]
[366176853,1750098669214,-583.84,0.00016707,2]
[366176854,1750098669224,-490.0,0.00016707,2]
[366176855,1750098669234,-490.0,0.00016707,2]
[366176856,1750098669243,-852.83,0.00016707,2]
[366176857,1750098669254,-2774.58,0.00016707,2]
[366176858,1750098669263,-833.28,0.00016707,2]
[366176859,1750098669273,-9086.97,0.00016707,2]
[366176860,1750098669282,-626.17,0.00016707,2]
[366176861,1750098669292,-490.0,0.00016707,2]
[366176862,1750098669302,-1144.16,0.00016707,2]
[366176863,1750098669312,-872.92,0.00016707,2]
[366176864,1750098669321,-529.95,0.00016707,2]
[366176865,1750098669330,-490.0,0.00016707,2]
[366176866,1750098669341,-998.19,0.00016707,2]
[366176867,1750098669354,-926.63,0.00016707,2]
[366176868,1750098669363,-695.95,0.00016707,2]
[366176869,1750098669373,-651.68,0.00016707,2]
[366176870,1750098669382,-1974.44,0.00016707,2]
[366176871,1750098669391,-624.68,0.00016707,2]
[366176872,1750098669400,-490.0,0.00016707,2]
[366176873,1750098669409,-490.0,0.00016707,2]
[366176874,1750098669419,-517.68,0.00016707,2]
[366176875,1750098669428,-1486.84,0.00016707,2]
[366176876,1750098669437,-578.65,0.00016707,2]
[366176877,1750098669446,-555.41,0.00016707,2]
[366176878,1750098669456,-819.16,0.00016707,2]
[366176879,1750098669465,-490.0,0.00016707,2]
[366176880,1750098669475,-3068.05,0.00016707,2]
[366176881,1750098669484,-1068.65,0.00016707,2]
[366176882,1750098669494,-1376.01,0.00016707,2]
[366176883,1750098669504,-573.32,0.00016707,2]
[366176884,1750098669514,-490.0,0.00016707,2]
[366176885,1750098669524,-1458.01,0.00016707,2]
[366176886,1750098669533,-1439.22,0.00016707,2]
[366176887,1750098669542,-724.67,0.00016707,2]
[366176888,1750098669552,-490.0,0.00016707,2]
[366176889,1750098669561,-848.52,0.00016707,2]
[366176890,1750098669570,-490.0,0.00016707,2]
[366176891,1750098669580,-787.53,0.00016707,2]
[366176892,1750098669590,-1077.12,0.00016707,2]
[366176893,1750098669601,-2310.41,0.00016707,2]
[366176894,1750098669611,-490.0,0.00016707,2]
[366176895,1750098669620,-490.0,0.00016707,2]
[366176896,1750098669629,-592.18,0.00016707,2]
[366176897,1750098669639,-490.0,0.00016707,2]
[366176898,1750098669648,-1030.25,0.00016707,2]
[366176899,1750098669657,-490.0,0.00016707,2]
[366176900,1750098669666,-936.2,0.00016707,2]
[366176901,1750098669676,-1003.24,0.00016707,2]
[366176902,1750098669685,-585.63,0.00016707,2]
[366176903,1750098669695,-1759.32,0.00016707,2]
[366176904,1750098669704,-607.31,0.00016707,2]
[366176905,1750098669713,-490.0,0.00016707,2]
[366176906,1750098669721,-938.19,0.00016707,2]
[366176907,1750098669730,-3778.94,0.00016707,2]
[366176908,1750098669739,-8412.1,0.00016707,2]
[366176909,1750098669748,-794.2,0.00016707,2]
[366176910,1750098669757,-490.0,0.00016707,2]
[366176911,1750098669767,-745.42,0.00016707,2]
[366176912,1750098669777,-490.0,0.00016707,2]
[366176913,1750098669786,-490.0,0.00016707,2]
[366176914,1750098669798,-539.86,0.00016707,2]
[366176915,1750098669807,-490.0,0.00016707,2]
[366176916,1750098669817,-4054.92,0.00016707,2]
[366176917,1750098669826,-783.13,0.00016707,2]
[366176918,1750098669836,-490.0,0.00016707,2]
[366176919,1750098669847,-1676.86,0.00016707,2]
[366176920,1750098669855,-1725.24,0.00016707,2]
[366176921,1750098669864,-490.0,0.00016707,2]
[366176922,1750098669873,-616.98,0.00016707,2]
[366176923,1750098669883,-1197.55,0.00016707,2]
[366176924,1750098669892,-562.33,0.00016707,2]
[366176925,1750098669902,-2884.12,0.00016707,2]
[366176926,1750098669911,-490.0,0.00016707,2]
[366176927,1750098669920,-937.33,0.00016707,2]
[366176928,1750098669929,-490.0,0.00016707,2]
[366176929,1750098669938,-1425.86,0.00016707,2]
[366176930,1750098669947,-1010.19,0.00016707,2]
[366176931,1750098669958,-741.83,0.00016707,2]
[366176932,1750098669967,-1316.94,0.00016707,2]
[366176933,1750098669976,-759.69,0.00016707,2]
[366176934,1750098669986,-490.0,0.00016707,2]
[366176935,1750098669995,-490.0,0.00016707,2]
[366176936,1750098670005,-490.0,0.00016707,2]
[366176937,1750098670014,-717.02,0.00016707,2]
[366176938,1750098670023,-913.99,0.00016707,2]
[366176939,1750098670033,-1424.5,0.00016707,2]
[366176940,1750098670042,-490.0,0.00016707,2]
[366176941,1750098670052,-490.0,0.00016707,2]
[366176942,1750098670061,-582.21,0.00016707,2]
[366176943,1750098670071,-641.57,0.00016707,2]
[366176944,1750098670080,-1575.33,0.00016707,2]
[366176945,1750098670090,-549.24,0.00016707,2]
[366176946,1750098670102,-1187.81,0.00016707,2]
[366176947,1750098670124,-490.0,0.00016707,2]
[366176948,1750098670135,-490.0,0.00016707,2]
[366176949,1750098670144,-566.99,0.00016707,2]
[366176950,1750098670155,-490.0,0.00016707,2]
[366176951,1750098670167,-980.41,0.00016707,2]
[366176952,1750098670182,-3319.43,0.00016707,2]
[366176953,1750098670192,-798.45,0.00016707,2]
[366176954,1750098670201,-1878.29,0.00016707,2]
[366176955,1750098670212,-490.0,0.00016707,2]
[366176956,1750098670222,-490.0,0.00016707,2]
[366176957,1750098670232,-653.56,0.00016707,2]
[366176958,1750098670243,-490.0,0.00016707,2]
[366176959,1750098670253,-7208.85,0.00016707,2]
[366176960,1750098670263,-1187.91,0.00016707,2]
[366176961,1750098670273,-490.0,0.00016707,2]
[366176962,1750098670283,-634.08,0.00016707,2]
[366176963,1750098670293,-606.94,0.00016707,2]
[366176964,1750098670302,-490.0,0.00016707,2]
[366176965,1750098670312,-613.79,0.00016707,2]
[366176966,1750098670322,-1059.56,0.00016707,2]
[366176967,1750098670333,-530.92,0.00016707,2]
[366176968,1750098670343,-2927.47,0.00016707,2]
[366176969,1750098670355,-14148.67,0.00016707,2]
[366176970,1750098670365,-528.18,0.00016707,2]
[366176971,1750098670376,-490.0,0.00016707,2]
[366176972,1750098670386,-775.89,0.00016707,2]
[366176973,1750098670396,-843.13,0.00016707,2]
[366176974,1750098670406,-536.55,0.00016707,2]
[366176975,1750098670415,-2229.92,0.00016707,2]
[366176976,1750098670425,-883.16,0.00016707,2]
[366176977,1750098670435,-3731.69,0.00016707,2]
[366176978,1750098670444,-490.0,0.00016707,2]
[366176979,1750098670454,-2804.92,0.00016707,2]
[366176980,1750098670464,-490.0,0.00016707,2]
[366176981,1750098670473,-1330.79,0.00016707,2]
[366176982,1750098670484,-793.2,0.00016707,2]
[366176983,1750098670493,-490.0,0.00016707,2]
[366176984,1750098670503,-490.0,0.00016707,2]
[366176985,1750098670513,-490.0,0.00016707,2]
[366176986,1750098670522,-661.62,0.00016707,2]
[366176987,1750098670532,-7004.33,0.00016707,2]
[366176988,1750098670541,-1081.81,0.00016707,2]
[366176989,1750098670551,-490.0,0.00016707,2]
[366176990,1750098670560,-490.0,0.00016707,2]
[366176991,1750098670578,-523.93,0.00016707,2]
[366176992,1750098670588,-1841.05,0.00016707,2]
[366176993,1750098670597,-2078.71,0.00016707,2]
[366176994,1750098670607,-490.0,0.00016707,2]
[366176995,1750098670617,-681.5,0.00016707,2]
[366176996,1750098670627,-490.0,0.00016707,2]
[366176997,1750098670637,-490.0,0.00016707,2]
[366176998,1750098670647,-541.96,0.00016707,2]
[366176999,1750098670658,-789.15,0.00016707,2]
[366177000,1750098670667,-605.92,0.00016707,2]
[366177001,1750098670677,-490.0,0.00016707,2]
[366177002,1750098670688,-313.67314392,0.00016707,2]
[366177003,1750098670698,-490.0,0.00016707,2]
[366177004,1750098670708,-519.27,0.00016707,2]
[366177005,1750098670718,-490.0,0.00016707,2]
[366177006,1750098670728,-1007.61,0.00016707,2]
[366177007,1750098670738,-609.81,0.00016707,2]
[366177008,1750098670747,-604.12,0.00016707,2]
[366177009,1750098670758,-490.0,0.00016707,2]
[366177010,1750098670767,-490.0,0.00016707,2]
[366177011,1750098670777,-487.67391039,0.00016709,2]
[366177012,1750098670788,-490.0,0.00016709,2]
[366177013,1750098670798,-150.0,0.00016709,2]
[366177014,1750098670807,-150.0,0.00016709,2]
[366177015,1750098670818,-150.0,0.00016709,2]
[366177016,1750098670827,-150.0,0.00016709,2]
[366177017,1750098670838,-150.0,0.00016709,2]
[366177018,1750098670849,-200.0,0.00016709,2]
[366177019,1750098670859,-150.0,0.00016709,2]
[366177020,1750098670869,-200.63288875,0.00016709,2]
[366177021,1750098670879,-202.68385262,0.00016709,2]
[366177022,1750098670888,-150.0,0.00016709,2]
[366177023,1750098670898,-150.0,0.00016709,2]
[366177024,1750098670907,-150.0,0.00016709,2]
[366177025,1750098670917,-295.1907986,0.00016709,2]
[366177026,1750098670927,-158.63247591,0.00016709,2]
[366177027,1750098670937,-200.0,0.00016709,2]
[366177028,1750098670946,-150.0,0.00016709,2]
[366177029,1750098670956,-203.6039194,0.00016709,2]
[366177030,1750098670966,-150.0,0.00016709,2]
[366177031,1750098670976,-150.0,0.00016709,2]
[366177032,1750098670986,-150.0,0.00016709,2]
[366177033,1750098670995,-150.0,0.00016709,2]
[366177034,1750098671005,-150.0,0.00016709,2]
[366177035,1750098671021,-150.0,0.00016709,2]
[366177036,1750098671031,-500.0,0.00016712,2]
[366177037,1750098671041,-500.0,0.00016712,2]
[366177038,1750098671051,-500.0,0.00016712,2]
[366177039,1750098671061,-500.0,0.00016712,2]
[366177040,1750098671071,-500.0,0.00016712,2]
[366177041,1750098671081,-500.0,0.00016712,2]
[366177042,1750098671091,-500.0,0.00016712,2]
[366177043,1750098671102,-286.48170363,0.00016712,2]
[366177044,1750098671111,-500.0,0.00016712,2]
[366177045,1750098671121,-450.0,0.00016712,2]
[366177046,1750098671131,-187.01,0.00016712,2]
[366177047,1750098671141,-164.41468905,0.00016714,2]
[366177048,1750098671151,-150.0,0.00016724,2]
[366177049,1750098671161,-150.0,0.00016725,2]
[366177050,1750098671175,-150.0,0.00016726,2]
[366177051,1750098671186,-831.18406056,0.00016728,2]
[366177052,1750098671196,-150.0,0.00016728,2]
[366177053,1750098671206,-150.0,0.00016731,2]
[366177054,1750098671216,-150.0,0.00016733,2]
[366177055,1750098671226,-150.0,0.00016735,2]
[366177056,1750098671236,-150.0,0.00016736,2]
[366177057,1750098671245,-150.0,0.00016736,2]